[Event "*** SCC Grand Prix: Titled Tuesday Blitz"]
[Site "Chess.com"]
[Date "2020.06.23"]
[Round "3"]
[White "Philosopherrr"]
[Black "1f3_2g41-0"]
[Result "0-1"]
[WhiteElo "2476"]
[BlackElo "2244"]
[TimeControl "180+1"]
[EndTime "10:29:00 PDT"]
[Termination "1f3_2g41-0 won by resignation"]

1. c4 {[%clk 0:03:00.9]} 1... Nf6 {[%clk 0:02:58.3]} 2. Nc3 {[%clk 0:02:58.4]}
2... c5 {[%clk 0:02:46.7]} 3. Nf3 {[%clk 0:02:57]} 3... g6 {[%clk 0:02:44.7]} 4.
g3 {[%clk 0:02:53.1]} 4... Bg7 {[%clk 0:02:44.7]} 5. Bg2 {[%clk 0:02:52.3]} 5...
O-O {[%clk 0:02:44.2]} 6. O-O {[%clk 0:02:53.2]} 6... Nc6 {[%clk 0:02:44.3]} 7.
b3 {[%clk 0:02:52.5]} 7... d6 {[%clk 0:02:44.5]} 8. Bb2 {[%clk 0:02:52.3]} 8...
Ne4 {[%clk 0:02:39.1]} 9. Rc1 {[%clk 0:02:48.2]} 9... Nxc3 {[%clk 0:02:36.1]}
10. Bxc3 {[%clk 0:02:48.1]} 10... Bxc3 {[%clk 0:02:27.5]} 11. Rxc3 {[%clk
0:02:47.9]} 11... a5 {[%clk 0:02:25.9]} 12. d4 {[%clk 0:02:47.4]} 12... a4
{[%clk 0:02:13.8]} 13. dxc5 {[%clk 0:02:40.2]} 13... dxc5 {[%clk 0:02:12.9]} 14.
Rd3 {[%clk 0:02:40.3]} 14... Qa5 {[%clk 0:02:11.6]} 15. Qd2 {[%clk 0:02:37.5]}
15... Bf5 {[%clk 0:02:08]} 16. Rd5 {[%clk 0:02:34.8]} 16... axb3 {[%clk
0:01:46.1]} 17. axb3 {[%clk 0:02:33.9]} 17... Qxd2 {[%clk 0:01:45.9]} 18. Nxd2
{[%clk 0:02:28.4]} 18... Ra2 {[%clk 0:01:34.6]} 19. e3 {[%clk 0:02:13.6]} 19...
Nb4 {[%clk 0:01:29.5]} 20. Rxf5 {[%clk 0:01:40.6]} 20... gxf5 {[%clk 0:01:28.2]}
21. Nf3 {[%clk 0:01:39.5]} 21... Rb2 {[%clk 0:01:25.7]} 22. Ne5 {[%clk
0:01:39.8]} 22... Rxb3 {[%clk 0:01:22.5]} 23. Nd7 {[%clk 0:01:40]} 23... Rc8
{[%clk 0:01:20.8]} 24. Nb6 {[%clk 0:01:28.4]} 24... e6 {[%clk 0:01:14.9]} 25.
Nxc8 {[%clk 0:01:27.9]} 25... Nd3 {[%clk 0:01:11.1]} 26. Nd6 {[%clk 0:01:25]}
26... b6 {[%clk 0:01:08.3]} 27. h4 {[%clk 0:01:20.4]} 27... Kf8 {[%clk
0:01:06.9]} 28. Rd1 {[%clk 0:01:18.6]} 28... Nb2 {[%clk 0:01:00.5]} 29. Rb1
{[%clk 0:01:17.9]} 29... Rb4 {[%clk 0:00:59.6]} 30. Bf1 {[%clk 0:01:13.1]} 30...
Ke7 {[%clk 0:00:56.5]} 31. Nb5 {[%clk 0:01:10.3]} 31... Kd7 {[%clk 0:00:41.3]}
32. Ra1 {[%clk 0:01:08.3]} 32... Nxc4 {[%clk 0:00:39.2]} 33. Ra7+ {[%clk
0:01:02.2]} 33... Kc6 {[%clk 0:00:37.1]} 34. Nc3 {[%clk 0:00:52.6]} 34... Ne5
{[%clk 0:00:23.1]} 35. Bg2+ {[%clk 0:00:49.5]} 35... Kd6 {[%clk 0:00:22]} 36.
Ba8 {[%clk 0:00:32.8]} 36... Rb3 {[%clk 0:00:19.2]} 37. Na4 {[%clk 0:00:26.5]}
37... c4 {[%clk 0:00:16.1]} 38. Kf1 {[%clk 0:00:21.7]} 38... c3 {[%clk
0:00:15.5]} 39. Ke2 {[%clk 0:00:19.6]} 39... Rb2+ {[%clk 0:00:14.3]} 40. Kd1
{[%clk 0:00:16.4]} 40... Rd2+ {[%clk 0:00:12.2]} 41. Ke1 {[%clk 0:00:13.3]}
41... Nd3+ {[%clk 0:00:12.6]} 42. Kf1 {[%clk 0:00:13.2]} 42... c2 {[%clk
0:00:13.2]} 43. Nxb6 {[%clk 0:00:11.7]} 43... c1=Q+ {[%clk 0:00:13.3]} 44. Kg2
{[%clk 0:00:12.2]} 44... Rxf2+ {[%clk 0:00:14]} 45. Kh3 {[%clk 0:00:12.5]} 45...
Qf1+ {[%clk 0:00:14.3]} 0-1

[Event "*** SCC Grand Prix: Titled Tuesday Blitz"]
[Site "Chess.com"]
[Date "2020.06.23"]
[Round "3"]
[White "JakubPulpan"]
[Black "Andreikka"]
[Result "0-1"]
[WhiteElo "2682"]
[BlackElo "2945"]
[TimeControl "180+1"]
[EndTime "10:29:01 PDT"]
[Termination "Andreikka won by resignation"]

1. Nf3 {[%clk 0:03:00.9]} 1... d5 {[%clk 0:02:59.9]} 2. g3 {[%clk 0:03:01.1]}
2... Nd7 {[%clk 0:03:00.3]} 3. Bg2 {[%clk 0:02:57.4]} 3... e5 {[%clk 0:02:59.8]}
4. d3 {[%clk 0:02:56.1]} 4... Ngf6 {[%clk 0:02:59.9]} 5. O-O {[%clk 0:02:55.9]}
5... Bc5 {[%clk 0:03:00.3]} 6. Nc3 {[%clk 0:02:53.3]} 6... c6 {[%clk 0:02:59.1]}
7. e4 {[%clk 0:02:49.9]} 7... dxe4 {[%clk 0:03:00]} 8. Nxe4 {[%clk 0:02:48.6]}
8... Nxe4 {[%clk 0:03:00.6]} 9. dxe4 {[%clk 0:02:49.5]} 9... O-O {[%clk
0:03:00.9]} 10. Qe2 {[%clk 0:02:41.1]} 10... Qe7 {[%clk 0:03:00.3]} 11. c3
{[%clk 0:02:41.1]} 11... a5 {[%clk 0:02:59.1]} 12. a4 {[%clk 0:02:40.8]} 12...
Nf6 {[%clk 0:02:52.2]} 13. Rd1 {[%clk 0:02:35.4]} 13... Bg4 {[%clk 0:02:41.9]}
14. Be3 {[%clk 0:02:34.2]} 14... Rad8 {[%clk 0:02:40.2]} 15. h3 {[%clk
0:02:30.2]} 15... Bh5 {[%clk 0:02:38.8]} 16. g4 {[%clk 0:02:19.3]} 16... Bg6
{[%clk 0:02:37.2]} 17. Nh4 {[%clk 0:02:10.8]} 17... Rfe8 {[%clk 0:01:52.8]} 18.
Nf5 {[%clk 0:02:08.4]} 18... Qf8 {[%clk 0:01:53]} 19. Qc4 {[%clk 0:02:03.3]}
19... Bxe3 {[%clk 0:01:48.8]} 20. Nxe3 {[%clk 0:02:02.5]} 20... Nd7 {[%clk
0:01:45.2]} 21. Qb3 {[%clk 0:01:27]} 21... Nc5 {[%clk 0:01:31.8]} 22. Qc4 {[%clk
0:01:26.7]} 22... Ra8 {[%clk 0:01:32.4]} 23. Nf5 {[%clk 0:01:20.1]} 23... Rad8
{[%clk 0:01:30.6]} 24. b4 {[%clk 0:00:37.6]} 24... axb4 {[%clk 0:01:29.7]} 25.
Qxb4 {[%clk 0:00:36.6]} 25... Rb8 {[%clk 0:01:15.3]} 26. Bf1 {[%clk 0:00:27.6]}
26... Ne6 {[%clk 0:01:13]} 27. Qxf8+ {[%clk 0:00:27.3]} 27... Kxf8 {[%clk
0:01:13.9]} 28. f3 {[%clk 0:00:21.5]} 28... Nc5 {[%clk 0:01:07]} 29. a5 {[%clk
0:00:20.5]} 29... Bxf5 {[%clk 0:01:06.6]} 30. exf5 {[%clk 0:00:21.4]} 30... Ra8
{[%clk 0:01:07.3]} 31. Rdb1 {[%clk 0:00:17.4]} 31... Ke7 {[%clk 0:01:06.3]} 32.
a6 {[%clk 0:00:17.2]} 32... Reb8 {[%clk 0:00:46.4]} 33. axb7 {[%clk 0:00:11.8]}
33... Rxa1 {[%clk 0:00:46.2]} 34. Rxa1 {[%clk 0:00:12.7]} 34... Rxb7 {[%clk
0:00:46.9]} 35. Ra5 {[%clk 0:00:12.9]} 35... Kd6 {[%clk 0:00:45.8]} 36. Ra1
{[%clk 0:00:11.8]} 36... Rb2 {[%clk 0:00:39.7]} 37. Ra7 {[%clk 0:00:09.5]} 37...
Nd7 {[%clk 0:00:26.7]} 38. Bc4 {[%clk 0:00:09.1]} 38... e4 {[%clk 0:00:27.3]}
39. fxe4 {[%clk 0:00:06.1]} 39... Ne5 {[%clk 0:00:28]} 40. Ba2 {[%clk 0:00:02]}
40... Nf3+ {[%clk 0:00:26.8]} 41. Kf1 {[%clk 0:00:02.3]} 41... Ke5 {[%clk
0:00:27.5]} 42. Bxf7 {[%clk 0:00:01.5]} 42... Kf4 {[%clk 0:00:28.1]} 43. c4
{[%clk 0:00:01.7]} 43... Kg3 {[%clk 0:00:27.2]} 44. Ra2 {[%clk 0:00:01.9]} 44...
Rxa2 {[%clk 0:00:26.6]} 0-1

[Event "*** SCC Grand Prix: Titled Tuesday Blitz"]
[Site "Chess.com"]
[Date "2020.06.23"]
[Round "3"]
[White "KNCP_719"]
[Black "Yoshikrov"]
[Result "1-0"]
[WhiteElo "2473"]
[BlackElo "2013"]
[TimeControl "180+1"]
[EndTime "10:29:01 PDT"]
[Termination "KNCP_719 won on time"]

1. e4 {[%clk 0:03:00.9]} 1... c5 {[%clk 0:02:59.8]} 2. Nf3 {[%clk 0:03:00.9]}
2... d6 {[%clk 0:02:59.9]} 3. Bb5+ {[%clk 0:03:01.3]} 3... Bd7 {[%clk
0:02:56.7]} 4. Bxd7+ {[%clk 0:03:01.2]} 4... Qxd7 {[%clk 0:02:56.3]} 5. O-O
{[%clk 0:03:00.2]} 5... Nc6 {[%clk 0:02:56.6]} 6. Re1 {[%clk 0:03:00.7]} 6... g6
{[%clk 0:02:55.5]} 7. c3 {[%clk 0:03:00.9]} 7... Bg7 {[%clk 0:02:55.9]} 8. d4
{[%clk 0:03:01.5]} 8... cxd4 {[%clk 0:02:56.1]} 9. cxd4 {[%clk 0:03:02.4]} 9...
e6 {[%clk 0:02:56.7]} 10. Nc3 {[%clk 0:03:02.4]} 10... Nge7 {[%clk 0:02:53.5]}
11. d5 {[%clk 0:02:54.8]} 11... Ne5 {[%clk 0:02:34.7]} 12. dxe6 {[%clk
0:02:14.5]} 12... Qxe6 {[%clk 0:02:19.9]} 13. Nb5 {[%clk 0:01:51.1]} 13... Nxf3+
{[%clk 0:02:09.1]} 14. gxf3 {[%clk 0:01:41.9]} 14... Qd7 {[%clk 0:01:39.4]} 15.
Nxd6+ {[%clk 0:01:40.2]} 15... Kf8 {[%clk 0:01:39.5]} 16. Nc4 {[%clk 0:01:15.2]}
16... Qc7 {[%clk 0:01:09.8]} 17. Qb3 {[%clk 0:01:03]} 17... Rc8 {[%clk
0:01:05.8]} 18. Ne3 {[%clk 0:00:47.6]} 18... Nc6 {[%clk 0:00:33.6]} 19. Nd5
{[%clk 0:00:47]} 19... Qd7 {[%clk 0:00:22.3]} 20. Kg2 {[%clk 0:00:36.8]} 20...
Nd4 {[%clk 0:00:22.3]} 21. Qa3+ {[%clk 0:00:33.5]} 21... Ke8 {[%clk 0:00:19.9]}
22. Ne3 {[%clk 0:00:20]} 22... Bh6 {[%clk 0:00:15.9]} 23. Rd1 {[%clk 0:00:18.3]}
23... Nb5 {[%clk 0:00:06.7]} 24. Qb3 {[%clk 0:00:11.7]} 24... Qc6 {[%clk
0:00:04.8]} 25. Bd2 {[%clk 0:00:11.9]} 25... Nd4 {[%clk 0:00:04.5]} 26. Qd3
{[%clk 0:00:09.4]} 26... Ne6 {[%clk 0:00:04]} 27. Rac1 {[%clk 0:00:09.5]} 27...
Qd7 {[%clk 0:00:03.2]} 28. Qa3 {[%clk 0:00:07.2]} 28... Rxc1 {[%clk 0:00:02.5]}
29. Bxc1 {[%clk 0:00:08.1]} 29... Qe7 {[%clk 0:00:02]} 30. Qxe7+ {[%clk
0:00:07.3]} 30... Kxe7 {[%clk 0:00:02.9]} 31. Nd5+ {[%clk 0:00:08.2]} 31... Ke8
{[%clk 0:00:01.5]} 32. Bxh6 {[%clk 0:00:09.1]} 1-0

[Event "*** SCC Grand Prix: Titled Tuesday Blitz"]
[Site "Chess.com"]
[Date "2020.06.23"]
[Round "3"]
[White "Grandmaster2B"]
[Black "TimKett"]
[Result "0-1"]
[WhiteElo "2417"]
[BlackElo "2213"]
[TimeControl "180+1"]
[EndTime "10:29:02 PDT"]
[Termination "TimKett won by resignation"]

1. e4 {[%clk 0:01:30.9]} 1... e5 {[%clk 0:02:57.8]} 2. Nf3 {[%clk 0:01:30.6]}
2... Nc6 {[%clk 0:02:57.7]} 3. Bb5 {[%clk 0:01:30.8]} 3... a6 {[%clk 0:02:57.4]}
4. Ba4 {[%clk 0:01:31.2]} 4... Nf6 {[%clk 0:02:56.5]} 5. O-O {[%clk 0:01:31.6]}
5... Be7 {[%clk 0:02:56.2]} 6. Re1 {[%clk 0:01:31.4]} 6... b5 {[%clk 0:02:55.7]}
7. Bb3 {[%clk 0:01:31.4]} 7... d6 {[%clk 0:02:55.7]} 8. c3 {[%clk 0:01:31.2]}
8... O-O {[%clk 0:02:55.5]} 9. h3 {[%clk 0:01:31.6]} 9... Na5 {[%clk 0:02:54.7]}
10. Bc2 {[%clk 0:01:32.1]} 10... c5 {[%clk 0:02:54.9]} 11. d4 {[%clk 0:01:33]}
11... Qc7 {[%clk 0:02:54.8]} 12. Bg5 {[%clk 0:01:32.8]} 12... h6 {[%clk
0:02:36.8]} 13. Bh4 {[%clk 0:01:31.7]} 13... Nc6 {[%clk 0:02:07.2]} 14. Nbd2
{[%clk 0:01:23.2]} 14... Bd7 {[%clk 0:01:40.7]} 15. Rc1 {[%clk 0:01:20.8]} 15...
Rad8 {[%clk 0:01:32.1]} 16. Nf1 {[%clk 0:01:19.6]} 16... cxd4 {[%clk 0:01:26.5]}
17. cxd4 {[%clk 0:01:20.5]} 17... Qb6 {[%clk 0:01:25.9]} 18. Bxf6 {[%clk
0:00:57.2]} 18... Bxf6 {[%clk 0:01:24]} 19. Ne3 {[%clk 0:00:58.1]} 19... Ne7
{[%clk 0:01:13.5]} 20. dxe5 {[%clk 0:00:47.3]} 20... dxe5 {[%clk 0:01:10.8]} 21.
Nd5 {[%clk 0:00:47.6]} 21... Nxd5 {[%clk 0:01:10.5]} 22. exd5 {[%clk 0:00:48.5]}
22... Rfe8 {[%clk 0:01:05.4]} 23. Qd2 {[%clk 0:00:32]} 23... Bc8 {[%clk
0:01:03.1]} 24. Be4 {[%clk 0:00:22]} 24... Bb7 {[%clk 0:01:01.6]} 25. Red1
{[%clk 0:00:18.1]} 25... Rc8 {[%clk 0:00:55.9]} 26. Qe2 {[%clk 0:00:10.7]} 26...
Rxc1 {[%clk 0:00:54.1]} 27. Rxc1 {[%clk 0:00:11.6]} 27... Rd8 {[%clk 0:00:53.9]}
28. Rd1 {[%clk 0:00:08.5]} 28... Rd6 {[%clk 0:00:50.9]} 29. Nh2 {[%clk
0:00:04.6]} 29... g6 {[%clk 0:00:40.8]} 30. Ng4 {[%clk 0:00:04.2]} 30... Bg7
{[%clk 0:00:40.4]} 31. Bf3 {[%clk 0:00:01.9]} 31... f5 {[%clk 0:00:38]} 32. Nxe5
{[%clk 0:00:01.3]} 32... Qd8 {[%clk 0:00:30.5]} 33. Nd3 {[%clk 0:00:01.6]} 33...
Bxd5 {[%clk 0:00:29.5]} 34. Bxd5+ {[%clk 0:00:02.5]} 34... Rxd5 {[%clk
0:00:29.7]} 35. b3 {[%clk 0:00:02.6]} 35... Kh7 {[%clk 0:00:27.5]} 36. Kh2
{[%clk 0:00:02.9]} 36... a5 {[%clk 0:00:24.7]} 37. g3 {[%clk 0:00:03.2]} 37...
a4 {[%clk 0:00:24.4]} 38. bxa4 {[%clk 0:00:02.5]} 38... bxa4 {[%clk 0:00:24.6]}
39. Rd2 {[%clk 0:00:01.7]} 39... a3 {[%clk 0:00:24.3]} 40. Qd1 {[%clk
0:00:01.8]} 40... Bc3 {[%clk 0:00:22.9]} 41. Rc2 {[%clk 0:00:01.8]} 41... Rxd3
{[%clk 0:00:23]} 42. Qc1 {[%clk 0:00:02.7]} 42... Qd4 {[%clk 0:00:20.9]} 43. Qf1
{[%clk 0:00:01.9]} 43... Rd2 {[%clk 0:00:20.6]} 44. Rc1 {[%clk 0:00:01.8]} 44...
Rxf2+ {[%clk 0:00:19.7]} 0-1

[Event "*** SCC Grand Prix: Titled Tuesday Blitz"]
[Site "Chess.com"]
[Date "2020.06.23"]
[Round "3"]
[White "kingofkolkata"]
[Black "dpruess"]
[Result "0-1"]
[WhiteElo "2188"]
[BlackElo "2482"]
[TimeControl "180+1"]
[EndTime "10:29:04 PDT"]
[Termination "dpruess won by checkmate"]

1. d4 {[%clk 0:03:00.9]} 1... Nf6 {[%clk 0:02:59.2]} 2. c4 {[%clk 0:03:00.7]}
2... c5 {[%clk 0:02:59.5]} 3. d5 {[%clk 0:03:00.9]} 3... e6 {[%clk 0:03:00]} 4.
Nc3 {[%clk 0:03:00.2]} 4... exd5 {[%clk 0:03:00.4]} 5. cxd5 {[%clk 0:03:00.9]}
5... d6 {[%clk 0:03:01]} 6. Bf4 {[%clk 0:03:00.8]} 6... a6 {[%clk 0:02:57.6]} 7.
a4 {[%clk 0:03:00.1]} 7... g6 {[%clk 0:02:56.2]} 8. h3 {[%clk 0:02:59.6]} 8...
Bg7 {[%clk 0:02:55.9]} 9. e3 {[%clk 0:03:00.1]} 9... O-O {[%clk 0:02:55.7]} 10.
Nf3 {[%clk 0:03:00.5]} 10... Bf5 {[%clk 0:02:02.9]} 11. Nd2 {[%clk 0:02:59.2]}
11... Re8 {[%clk 0:02:02.7]} 12. Be2 {[%clk 0:02:57.9]} 12... Ne4 {[%clk
0:01:58]} 13. Ndxe4 {[%clk 0:02:41.6]} 13... Bxe4 {[%clk 0:01:58.9]} 14. O-O
{[%clk 0:02:36.2]} 14... Qb6 {[%clk 0:01:43.2]} 15. Nxe4 {[%clk 0:02:30.1]}
15... Rxe4 {[%clk 0:01:44.1]} 16. a5 {[%clk 0:02:27]} 16... Qc7 {[%clk
0:01:35.4]} 17. Qc2 {[%clk 0:02:11.2]} 17... Rb4 {[%clk 0:01:32.8]} 18. Ra2
{[%clk 0:01:47.8]} 18... Nd7 {[%clk 0:01:31.7]} 19. e4 {[%clk 0:01:35]} 19...
Re8 {[%clk 0:01:23.9]} 20. f3 {[%clk 0:01:34.2]} 20... f5 {[%clk 0:00:28.1]} 21.
Bd2 {[%clk 0:01:33.2]} 21... Rd4 {[%clk 0:00:27.8]} 22. Bc3 {[%clk 0:01:25.5]}
22... fxe4 {[%clk 0:00:27.4]} 23. Bxd4 {[%clk 0:01:12.9]} 23... Bxd4+ {[%clk
0:00:28.3]} 24. Kh1 {[%clk 0:01:12]} 24... e3 {[%clk 0:00:28.4]} 25. Rd1 {[%clk
0:01:06.7]} 25... Qd8 {[%clk 0:00:28.5]} 26. b4 {[%clk 0:00:58.5]} 26... Qf6
{[%clk 0:00:20.7]} 27. b5 {[%clk 0:00:57.3]} 27... Qf4 {[%clk 0:00:18.9]} 28.
Rxd4 {[%clk 0:00:42.8]} 28... cxd4 {[%clk 0:00:18.6]} 29. bxa6 {[%clk
0:00:40.2]} 29... bxa6 {[%clk 0:00:18.4]} 30. Bxa6 {[%clk 0:00:34]} 30... Nf6
{[%clk 0:00:18.5]} 31. Bb5 {[%clk 0:00:28.1]} 31... Re7 {[%clk 0:00:15.9]} 32.
a6 {[%clk 0:00:25]} 32... Nh5 {[%clk 0:00:15.7]} 33. a7 {[%clk 0:00:16.9]} 33...
Ng3+ {[%clk 0:00:15.7]} 34. Kg1 {[%clk 0:00:17.1]} 34... e2 {[%clk 0:00:16.1]}
35. a8=Q+ {[%clk 0:00:16.3]} 35... Kg7 {[%clk 0:00:16.5]} 36. Bxe2 {[%clk
0:00:08.2]} 36... Nxe2+ {[%clk 0:00:16.5]} 37. Qxe2 {[%clk 0:00:07.1]} 37...
Rxe2 {[%clk 0:00:15.9]} 38. Rxe2 {[%clk 0:00:08]} 38... Qc1+ {[%clk 0:00:16.1]}
39. Kf2 {[%clk 0:00:06.1]} 39... d3 {[%clk 0:00:14.9]} 40. Qb7+ {[%clk
0:00:05.7]} 40... Kh6 {[%clk 0:00:14]} 41. Rb2 {[%clk 0:00:02.3]} 41... d2
{[%clk 0:00:13.7]} 42. Qb3 {[%clk 0:00:01.5]} 42... Qe1# {[%clk 0:00:13.6]} 0-1

[Event "*** SCC Grand Prix: Titled Tuesday Blitz"]
[Site "Chess.com"]
[Date "2020.06.23"]
[Round "3"]
[White "talaicito"]
[Black "Ladislav1969"]
[Result "1-0"]
[WhiteElo "2100"]
[BlackElo "2313"]
[TimeControl "180+1"]
[EndTime "10:29:05 PDT"]
[Termination "talaicito won on time"]

1. d4 {[%clk 0:03:00.9]} 1... Nf6 {[%clk 0:02:59.2]} 2. Nc3 {[%clk 0:02:59.7]}
2... d5 {[%clk 0:02:58.3]} 3. Bf4 {[%clk 0:02:59.4]} 3... g6 {[%clk 0:02:56.4]}
4. e3 {[%clk 0:02:58.9]} 4... Bg7 {[%clk 0:02:56.2]} 5. h4 {[%clk 0:02:58.9]}
5... c5 {[%clk 0:02:45.1]} 6. Nb5 {[%clk 0:02:53.7]} 6... Na6 {[%clk 0:02:43.8]}
7. c3 {[%clk 0:02:53]} 7... O-O {[%clk 0:02:37.8]} 8. Nf3 {[%clk 0:02:52.6]}
8... Bg4 {[%clk 0:02:36.6]} 9. Be2 {[%clk 0:02:36.2]} 9... cxd4 {[%clk
0:02:22.9]} 10. exd4 {[%clk 0:02:35.6]} 10... Qd7 {[%clk 0:02:15.3]} 11. a4
{[%clk 0:02:35]} 11... Qe6 {[%clk 0:02:08]} 12. Ne5 {[%clk 0:02:29.4]} 12...
Bxe2 {[%clk 0:02:03.4]} 13. Qxe2 {[%clk 0:02:29.6]} 13... Nd7 {[%clk 0:02:00.2]}
14. h5 {[%clk 0:02:12.3]} 14... Nxe5 {[%clk 0:01:40.8]} 15. dxe5 {[%clk
0:02:10.9]} 15... Nc5 {[%clk 0:01:35.4]} 16. Nc7 {[%clk 0:01:43.4]} 16... Qf5
{[%clk 0:01:31.5]} 17. Be3 {[%clk 0:01:31.4]} 17... Nd3+ {[%clk 0:01:24.9]} 18.
Kf1 {[%clk 0:01:30.5]} 18... Rad8 {[%clk 0:01:12.4]} 19. g4 {[%clk 0:01:27.4]}
19... Qxe5 {[%clk 0:01:11.7]} 20. Qxd3 {[%clk 0:01:15]} 20... Qxc7 {[%clk
0:01:11.7]} 21. a5 {[%clk 0:01:01.2]} 21... a6 {[%clk 0:00:52.9]} 22. Bb6 {[%clk
0:00:55.8]} 22... Qf4 {[%clk 0:00:46.5]} 23. Bxd8 {[%clk 0:00:55.6]} 23... Rxd8
{[%clk 0:00:45.4]} 24. f3 {[%clk 0:00:47.8]} 24... Qg3 {[%clk 0:00:33.1]} 25.
Rg1 {[%clk 0:00:34.5]} 25... Qh3+ {[%clk 0:00:31]} 26. Kf2 {[%clk 0:00:32.8]}
26... Be5 {[%clk 0:00:20.5]} 27. hxg6 {[%clk 0:00:25.4]} 27... hxg6 {[%clk
0:00:19.1]} 28. Qe3 {[%clk 0:00:17.3]} 28... f6 {[%clk 0:00:10.4]} 29. Rh1
{[%clk 0:00:16.8]} 29... Qg3+ {[%clk 0:00:09.8]} 30. Ke2 {[%clk 0:00:16.4]}
30... d4 {[%clk 0:00:08.6]} 31. Qf2 {[%clk 0:00:14.6]} 31... d3+ {[%clk
0:00:06.8]} 32. Kf1 {[%clk 0:00:12.8]} 32... Qf4 {[%clk 0:00:04.9]} 33. Rd1
{[%clk 0:00:11.7]} 33... d2 {[%clk 0:00:04.1]} 34. Kg2 {[%clk 0:00:10.2]} 34...
Rd3 {[%clk 0:00:04.1]} 35. Rh3 {[%clk 0:00:08.8]} 35... Kg7 {[%clk 0:00:04.1]}
36. Qe2 {[%clk 0:00:07.1]} 36... Rd5 {[%clk 0:00:03.9]} 37. Rdh1 {[%clk
0:00:06.6]} 37... Kf7 {[%clk 0:00:03.4]} 38. Rh7+ {[%clk 0:00:06]} 38... Ke6
{[%clk 0:00:03.7]} 39. Rd1 {[%clk 0:00:04.8]} 39... Qg3+ {[%clk 0:00:02]} 40.
Kf1 {[%clk 0:00:05]} 1-0

[Event "*** SCC Grand Prix: Titled Tuesday Blitz"]
[Site "Chess.com"]
[Date "2020.06.23"]
[Round "3"]
[White "murtas73"]
[Black "bratkoo"]
[Result "1-0"]
[WhiteElo "2643"]
[BlackElo "2411"]
[TimeControl "180+1"]
[EndTime "10:29:08 PDT"]
[Termination "murtas73 won by resignation"]

1. d4 {[%clk 0:03:00.9]} 1... e6 {[%clk 0:02:59.1]} 2. c4 {[%clk 0:03:00.7]}
2... d5 {[%clk 0:02:53.4]} 3. Nc3 {[%clk 0:02:59.4]} 3... Nf6 {[%clk 0:02:52.8]}
4. Bg5 {[%clk 0:02:58.1]} 4... Be7 {[%clk 0:02:52.6]} 5. cxd5 {[%clk 0:02:57.2]}
5... exd5 {[%clk 0:02:52.4]} 6. e3 {[%clk 0:02:57.3]} 6... O-O {[%clk
0:02:52.3]} 7. Bd3 {[%clk 0:02:57.8]} 7... h6 {[%clk 0:02:51.3]} 8. Bh4 {[%clk
0:02:56.6]} 8... Re8 {[%clk 0:02:51.2]} 9. Nf3 {[%clk 0:02:55.2]} 9... Nbd7
{[%clk 0:02:51.4]} 10. O-O {[%clk 0:02:54.5]} 10... c6 {[%clk 0:02:50.1]} 11.
Qc2 {[%clk 0:02:53.3]} 11... Ne4 {[%clk 0:02:48.7]} 12. Bxe7 {[%clk 0:02:49.7]}
12... Qxe7 {[%clk 0:02:48.3]} 13. Bxe4 {[%clk 0:02:42.1]} 13... dxe4 {[%clk
0:02:48]} 14. Nd2 {[%clk 0:02:43]} 14... Nf6 {[%clk 0:02:48.1]} 15. Rab1 {[%clk
0:02:41.7]} 15... h5 {[%clk 0:02:46]} 16. b4 {[%clk 0:02:40.4]} 16... h4 {[%clk
0:02:45.8]} 17. h3 {[%clk 0:02:40.2]} 17... a6 {[%clk 0:02:44.4]} 18. a4 {[%clk
0:02:35.9]} 18... Bf5 {[%clk 0:02:42.1]} 19. b5 {[%clk 0:02:32.7]} 19... cxb5
{[%clk 0:02:38.8]} 20. axb5 {[%clk 0:02:32.5]} 20... Rec8 {[%clk 0:02:39]} 21.
bxa6 {[%clk 0:02:31.3]} 21... bxa6 {[%clk 0:02:35.9]} 22. Rfc1 {[%clk 0:02:27]}
22... Nd5 {[%clk 0:02:26.9]} 23. Qb3 {[%clk 0:02:23.2]} 23... Nxc3 {[%clk
0:02:01.8]} 24. Rxc3 {[%clk 0:02:24.1]} 24... Qg5 {[%clk 0:01:59.9]} 25. Rxc8+
{[%clk 0:02:19]} 25... Rxc8 {[%clk 0:01:59.1]} 26. Qd5 {[%clk 0:02:17.7]} 26...
Qg6 {[%clk 0:01:53.2]} 27. Kh2 {[%clk 0:02:04]} 27... Rc2 {[%clk 0:01:52.7]} 28.
Qd8+ {[%clk 0:02:02.3]} 28... Kh7 {[%clk 0:01:52.3]} 29. Qxh4+ {[%clk 0:01:57]}
29... Qh6 {[%clk 0:01:52.6]} 30. Qxh6+ {[%clk 0:01:49.4]} 30... gxh6 {[%clk
0:01:52.5]} 31. Nf1 {[%clk 0:01:34.9]} 31... Rxf2 {[%clk 0:01:48]} 32. Ng3
{[%clk 0:01:34.5]} 32... Be6 {[%clk 0:01:46.3]} 33. Ra1 {[%clk 0:01:32.5]} 33...
Bc4 {[%clk 0:01:45.2]} 34. Nxe4 {[%clk 0:01:29.7]} 34... Re2 {[%clk 0:01:44.5]}
35. Ra3 {[%clk 0:01:29.6]} 35... Kg7 {[%clk 0:01:42.3]} 36. Nd6 {[%clk
0:01:28.4]} 36... Bd5 {[%clk 0:01:40.8]} 37. Kg3 {[%clk 0:01:23.5]} 37... Rxg2+
{[%clk 0:01:39.7]} 38. Kf4 {[%clk 0:01:23.3]} 38... Ra2 {[%clk 0:01:22.7]} 39.
Rc3 {[%clk 0:01:19.3]} 39... Be6 {[%clk 0:01:17.6]} 40. e4 {[%clk 0:01:17.6]}
40... Rf2+ {[%clk 0:01:13.5]} 41. Ke5 {[%clk 0:01:15.8]} 41... a5 {[%clk
0:00:59.3]} 42. d5 {[%clk 0:01:15.5]} 42... Bd7 {[%clk 0:00:55.6]} 43. Rc7
{[%clk 0:01:11.7]} 43... Bxh3 {[%clk 0:00:54.9]} 44. Ne8+ {[%clk 0:01:12.1]}
44... Kg6 {[%clk 0:00:52.7]} 45. Rc6+ {[%clk 0:01:10]} 45... Kg5 {[%clk
0:00:50]} 46. Ra6 {[%clk 0:01:09.4]} 46... Bd7 {[%clk 0:00:44.3]} 47. Nf6 {[%clk
0:01:07.1]} 47... Bc8 {[%clk 0:00:44.6]} 48. Nh7+ {[%clk 0:01:06]} 48... Kg4
{[%clk 0:00:43.4]} 49. Rxa5 {[%clk 0:01:05.8]} 49... h5 {[%clk 0:00:43.6]} 50.
Ra8 {[%clk 0:01:04.3]} 50... Bb7 {[%clk 0:00:35]} 51. Rg8+ {[%clk 0:01:02]}
51... Kh3 {[%clk 0:00:31.5]} 52. Ng5+ {[%clk 0:01:00.8]} 52... Kh2 {[%clk
0:00:29.6]} 53. Rf8 {[%clk 0:00:54.4]} 53... h4 {[%clk 0:00:23]} 54. Rxf7 {[%clk
0:00:54.2]} 54... Rg2 {[%clk 0:00:19.5]} 55. Nf3+ {[%clk 0:00:48.9]} 55... Kg3
{[%clk 0:00:19.9]} 56. Nxh4 {[%clk 0:00:48.4]} 56... Bxd5 {[%clk 0:00:20.3]} 57.
exd5 {[%clk 0:00:45.5]} 57... Kxh4 {[%clk 0:00:20.3]} 58. Rh7+ {[%clk
0:00:44.7]} 58... Kg3 {[%clk 0:00:19.2]} 59. Rg7+ {[%clk 0:00:45]} 59... Kf3
{[%clk 0:00:20.1]} 1-0